Cogmind - Beta 16 @@@ ROGUE MODE // 2026.01.02 @ 18:38:11 Player: parasect Result: Self-destructed Performance ------------- Evolutions (3) 1500 Regions Visited (6) 1200 Robots Destroyed (26) 130 Value Destroyed (652) 652 Prototype IDs (23) 460 Alien Tech Used (0) 0 Bonus (184) 184 TOTAL SCORE: 4126 Bonus ------- Follower Combat Kills 184 Cogmind --------- Core Integrity 655/700 Matter 300/300 Energy 159/160 System Corruption 0% Temperature Cool (3) Movement Flying (52) Location -7/Factory Parts ------- > --- POWER (1) -------- Light Nuclear Core > --- PROPULSION (4) --- Advanced Treads Flight Unit Flight Unit VTOL Module > --- UTILITY (6) ------ Improved Sensor Array Improved Signal Interpreter Improved Terrain Scan Processor Transmission Jammer ECM Suite System Shield > --- WEAPON (2) ------- Longsword +1 > --- INVENTORY (5) ---- Improved Medium Armor Plating System Shield Heavy Missile Launcher Peak State ------------ > --- POWER ------------ Light Nuclear Core > --- PROPULSION ------- Advanced Treads Flight Unit Flight Unit VTOL Module > --- UTILITY ---------- Improved Sensor Array Improved Signal Interpreter Improved Terrain Scan Processor Transmission Jammer ECM Suite System Shield > --- WEAPON ----------- Longsword +1 > --- INVENTORY -------- Improved Medium Armor Plating System Shield Heavy Missile Launcher [Rating: 36] Favorites ----------- Power Light Nuclear Core Engine Ion Engine Power Core Light Nuclear Core Propulsion Light Treads Treads Light Treads Leg Aluminum Leg Flight Unit Flight Unit Utility Seismic Detector Device Seismic Detector Processor Improved Signal Interpreter Hackware System Shield Protection Light Armor Plating Weapon Light Assault Rifle Ballistic Gun Light Assault Rifle Launcher Rocket Launcher Slashing Weapon Longsword +1 Build | -11 -10 -10 -10 -9 -8 -7 ------- Run | Yrd Mat Min Exi Min Mat Fac Slots Evolved 6 | . . . . . 4 2 Power . | . . . . . . . Propulsion 2 | . . . . . 2 . Utility 4 | . . . . . 2 2 Weapon . | . . . . . . . Parts Attached 38 | 8 3 3 . 2 13 9 Power 6 | 1 1 1 . 1 1 1 Engine 3 | 1 . 1 . . 1 . Core 3 | . 1 . . 1 . 1 Reactor . | . . . . . . . Propulsion 11 | 4 . . . . 3 4 Treads 5 | 2 . . . . 3 . Leg 2 | 2 . . . . . . Wheel . | . . . . . . . Hover . | . . . . . . . Flight 4 | . . . . . . 4 Utility 15 | 1 2 1 . 1 7 3 Device 8 | 1 . 1 . 1 3 2 Storage . | . . . . . . . Processor 3 | . . . . . 2 1 Hackware 1 | . . . . . 1 . Protection 3 | . 2 . . . 1 . Artifact . | . . . . . . . Weapon 6 | 2 . 1 . . 2 1 Energy Gun . | . . . . . . . Energy Cannon . | . . . . . . . Ballistic Gun 3 | 2 . 1 . . . . Ballistic Cannon . | . . . . . . . Launcher 2 | . . . . . 1 1 Special Weapon . | . . . . . . . Impact Weapon . | . . . . . . . Slashing Weapon 1 | . . . . . 1 . Piercing Weapon . | . . . . . . . Special Melee Weapon . | . . . . . . . Unidentified Prototypes . | . . . . . . . Parts Lost 10 | . . 2 . . 7 1 Power 2 | . . 1 . . 1 . Propulsion 3 | . . . . . 2 1 Utility 2 | . . 1 . . 1 . Weapon 3 | . . . . . 3 . Highest Loss Streak 4 | . . 2 . . 4 1 To Critical Strikes . | . . . . . . . Average Backups 4 | 3 4 4 4 5 4 2 Power . | . . . . . . . Propulsion 2 | 2 2 3 3 3 2 . Utility . | . . . . . . 1 Weapon 1 | . 2 1 1 2 1 . Tool/Special . | . . . . . . . Unused Backups 8 | 2 . 2 1 1 . 2 Power . | . . . . . . . Propulsion 3 | 2 . 1 . . . . Utility 2 | . . . . . . 2 Weapon 3 | . . 1 1 1 . . Tool/Special . | . . . . . . . Average Slot Usage (%) 94 | . 89 98 100 99 91 76 Engine 6 | . 8 5 14 . 6 . Core 5 | . 5 7 . 13 1 1 Treads 22 | . . 28 28 28 32 12 Leg 4 | . 28 . . . . . Flight 1 | . . . . . . 17 Device 20 | . 14 20 28 28 17 16 Processor 2 | . . . . . 9 13 Protection 3 | . 4 7 . . 5 . Ballistic Gun 23 | . 28 28 28 28 14 . Peak Build Rating 36 | 6 9 9 8 12 24 36 Average Rating 11 | 4 7 7 7 11 18 29 On Entrance 8 | . 6 9 7 8 12 18 Avg Prop Armor Cover (%) 28 | . . . . . 36 25 Naked Turns . | . . . . . . . Heaviest Build 17 | 8 11 11 9 9 17 12 Greatest Support 82 | 40 40 40 40 40 82 16 Greatest Overweight (x) 1 | . . . . . 1 1 Average Overweight (x) . | . . . . . . . Largest Inventory Capacity 5 | 5 5 5 5 5 5 5 Average Capacity 5 | 5 5 5 5 5 5 5 Most Carried 5 | 5 5 5 5 5 5 5 Average Carried 4 | 3 4 4 4 5 4 2 Final Capacity 5 | 5 5 5 5 5 5 5 Final Carried 5 | 4 3 5 5 5 4 3 Class Distribution -------------------- 54% | Scavenger-Mutant 43% | Mutant Dominant Class ---------------- Mutant | -10/Materials Mutant | -10/Mines Scavenger-Mutant | -10/Exiles Scavenger-Mutant | -9/Mines Scavenger-Mutant | -8/Materials Mutant | -7/Factory Resources | -11 -10 -10 -10 -9 -8 -7 ----------- Run | Yrd Mat Min Exi Min Mat Fac Matter Collected 914 | 258 138 87 . 37 100 294 Remotely . | . . . . . . . Salvage Created 759 | 127 220 141 . 12 139 120 Parts 47 | 10 10 10 . . 10 7 Haulers Intercepted 2 | . 1 . . . 1 . Recyclers Shooed 1 | 1 . . . . . . Parts Field Recycled . | . . . . . . . Retrieved Matter . | . . . . . . . Parts Self-Destructed . | . . . . . . . Prevented . | . . . . . . . Parts Restored . | . . . . . . . Kills | -11 -10 -10 -10 -9 -8 -7 ------- Run | Yrd Mat Min Exi Min Mat Fac Combat Hostiles Destroyed 18 | . 4 5 . 1 4 4 Guns 11 | . 4 5 . 1 1 . AOE 7 | . . . . . 3 4 Classes Destroyed 7 | 2 2 1 . . 2 . Builder 1 | . . . . . 1 . Tunneler 3 | 3 . . . . . . Hauler 2 | . 1 . . . 1 . Recycler 2 | 1 . . . . . 1 Swarmer 8 | . . 3 . 1 . 4 Grunt 9 | . 4 2 . . 3 . Sentry 1 | . . . . . 1 . Best Kill Streak 4 | 3 2 3 . 1 4 4 Combat Bots Only 4 | . 2 3 . 1 3 4 Max Kills in Single Turn 2 | 1 1 1 . 1 2 2 Gunslinging . | . . . . . . . Exploded 2 | . . . . . 1 2 Melee . | . . . . . . . Uniques/NPCs Destroyed . | . . . . . . . Combat | -11 -10 -10 -10 -9 -8 -7 -------- Run | Yrd Mat Min Exi Min Mat Fac Hostile Shots Fired 174 | . 30 47 . 8 66 23 Missed 60 | . 9 15 . 3 17 16 Hits 114 | . 21 32 . 5 49 7 Projectile 114 | . 21 32 . 5 49 7 Damage Taken 1649 | . 280 385 . 83 816 85 Core 300 | . 53 44 . 10 148 45 Absorbed by Shields . | . . . . . . . Redirected to Shielding 6 | . 6 . . . . . Core Remaining (%) 76 | 100 . . . 57 73 . Volleys Fired 108 | 13 35 19 . 7 32 2 Largest 2 | 2 2 2 . 2 2 1 Hottest 53 | 40 40 40 . 40 53 39 Shots Fired 209 | 26 70 39 1 15 56 2 Gun 197 | 26 70 39 1 15 46 . Cannon . | . . . . . . . Launcher 12 | . . . . . 10 2 Special . | . . . . . . . Kinetic 197 | 26 70 39 1 15 46 . Thermal . | . . . . . . . Explosive 12 | . . . . . 10 2 Electromagnetic . | . . . . . . . Robot Hit Streak 11 | 5 11 5 2 5 9 2 Robot Miss Streak 4 | 1 4 2 . 2 4 . Penetration Max . | . . . . . . . Secondary Targets 2 | . 2 . . . . . Max Gunslinging Chain 1 | . 1 . . . . . Shots Hit Robots 138 | 17 45 29 1 9 35 2 Core Hits 60 | 7 18 10 1 2 16 6 Critical Kills . | . . . . . . . Critical Parts Destroyed . | . . . . . . . Critical Strikes . | . . . . . . . Melee Attacks 3 | . . . . . 1 2 Impact . | . . . . . . . Slashing 3 | . . . . . 1 2 Piercing . | . . . . . . . Sneak Attacks 1 | . . . . . . 1 Combat Hostiles . | . . . . . . . Follow-up Attacks . | . . . . . . . Damage Inflicted 2059 | 150 386 252 6 77 831 357 Guns 1068 | 150 366 252 6 71 223 . Cannons . | . . . . . . . Explosions 869 | . . . . . 608 261 Melee 96 | . . . . . . 96 Ramming 26 | . 20 . . 6 . . Kinetic 1068 | 150 366 252 6 71 223 . Thermal . | . . . . . . . Explosive 869 | . . . . . 608 261 Electromagnetic . | . . . . . . . Impact . | . . . . . . . Slashing 96 | . . . . . . 96 Piercing . | . . . . . . . Highest Corruption 2 | . 2 2 2 2 . . Average Corruption 2 | . 2 2 2 2 . . Corruption Purged . | . . . . . . . Corruption Blocked . | . . . . . . . Effects 31 | . 8 8 5 10 . . Message Errors 10 | . 2 3 1 4 . . Matter Fused 2 | . 1 1 . . . . Heat Flow Errors 4 | . 1 1 1 1 . . Energy Discharges 3 | . . . 1 2 . . Data Loss (minor) 5 | . 2 1 1 1 . . Data Loss (major) 1 | . . . . 1 . . Misfires 4 | . 1 1 1 1 . . Alerts 1 | . . 1 . . . . Weapon Failures 1 | . 1 . . . . . Overload Shots . | . . . . . . . Overflow Damage 84 | . . . . . 18 66 Projectiles . | . . . . . . . Explosions 18 | . . . . . 18 . Melee 66 | . . . . . . 66 Knockbacks . | . . . . . . . Impact . | . . . . . . . Kinetic . | . . . . . . . Secondary . | . . . . . . . Self-Inflicted Damage 25 | . . . . . 25 . Shots 1 | . . . . . 1 . Rammed 1 | . . . . 1 . . Targets Rammed 6 | . 5 . . 1 . . Kicked 5 | . 5 . . . . . Crushed . | . . . . . . . Highest Temperature 220 | . 220 127 74 216 30 5 Average Temperature 31 | . 35 21 45 123 11 5 Received Heat Transfer 777 | . 153 174 . . 432 18 Siege Activations . | . . . . . . . Martial Activations . | . . . . . . . Shielding Activations . | . . . . . . . Robots Disrupted . | . . . . . . . Combat Hostiles . | . . . . . . . Robots Corrupted . | . . . . . . . Combat Hostiles . | . . . . . . . Parts Fried . | . . . . . . . Impact Corruptions . | . . . . . . . Robots Melted . | . . . . . . . Combat Hostiles . | . . . . . . . Parts Melted . | . . . . . . . Heat Transferred . | . . . . . . . Parts Sabotaged . | . . . . . . . Parts Stolen . | . . . . . . . Parts Stripped . | . . . . . . . Power Chain Reactions . | . . . . . . . Alert | -11 -10 -10 -10 -9 -8 -7 ------- Run | Yrd Mat Min Exi Min Mat Fac Maximum Alert Level . | . . . . . . . Low Security (%) 100 | 100 100 100 . 100 100 100 Level 1 . | . . . . . . . Level 2 . | . . . . . . . Level 3 . | . . . . . . . Level 4 . | . . . . . . . Level 5 . | . . . . . . . High Security . | . . . . . . . Max Security . | . . . . . . . Peak Influence 124 | 10 69 88 . 104 112 124 Initial 21 | . . 18 . . . 21 Average 20 | 1 17 15 . 29 18 40 Influence Increases 969 | 20 148 150 . 242 235 174 Destroy 0b10 Robot/C 520 | . 80 100 . 180 80 80 Destroy 0b10 Robot/NC 40 | 20 5 . . . 10 5 Destroy Leader 114 | . 22 20 . 40 22 10 Allied During Kill 22 | . . . . 22 . . Successful Hack 35 | . 11 . . . 24 . Disable Machine 45 | . . . . . 30 15 Destroy Structure 73 | . . . . . 54 19 Lose Combat Pursuer 120 | . 30 30 . . 15 45 Influence Decreases 890 | 20 99 199 . 242 188 142 Entered New Map 57 | . . 31 . . . 26 Time Decay 743 | 20 99 168 . 222 128 106 Lost Part 70 | . . . . . 60 10 Lost Ally 20 | . . . . 20 . . Squads Dispatched 2 | . . . . 1 1 . Investigation 2 | . . . . 1 1 . Extermination . | . . . . . . . Reinforcement . | . . . . . . . Assault . | . . . . . . . Garrison . | . . . . . . . Intercept . | . . . . . . . Searches Triggered . | . . . . . . . Construction Impeded . | . . . . . . . Haulers Reinforced . | . . . . . . . Active Scanning Responses . | . . . . . . . Cargo Convoy Interrupts . | . . . . . . . Stealth | -11 -10 -10 -10 -9 -8 -7 --------- Run | Yrd Mat Min Exi Min Mat Fac Distress Signals 3 | . 2 . . . 1 . Communications Jammed . | . . . . . . . Distress Signals . | . . . . . . . Times Spotted 46 | . 14 6 . 7 12 7 Peak Tracking Total 5 | . 4 2 . 3 5 3 Tactical Retreats 5 | . 1 1 . . 1 2 ECM-based Alert Blocks 1 | . . . . . . 1 Traps | -11 -10 -10 -10 -9 -8 -7 ------- Run | Yrd Mat Min Exi Min Mat Fac Traps Triggered 1 | . 1 . . . . . Indirectly . | . . . . . . . Trap Hack Attempts . | . . . . . . . Triggered . | . . . . . . . Disarmed 3 | . 3 . . . . . Reprogrammed . | . . . . . . . Reused . | . . . . . . . Traps Extracted . | . . . . . . . Installed . | . . . . . . . Triggered . | . . . . . . . Machines | -11 -10 -10 -10 -9 -8 -7 ---------- Run | Yrd Mat Min Exi Min Mat Fac Machines Disabled 3 | . . . . . 2 1 Max in Single Turn 1 | . . . . . 1 1 Garrison Access 1 | . . . . . . 1 Machines Repaired . | . . . . . . . Machines Dismantled . | . . . . . . . Machines Sabotaged . | . . . . . . . Overloaded Fab Kills . | . . . . . . . Hacking | -11 -10 -10 -10 -9 -8 -7 --------- Run | Yrd Mat Min Exi Min Mat Fac Machines Accessed 12 | . 3 . 2 1 5 1 Terminals 8 | . 3 . . . 5 . Fabricators . | . . . . . . . Repair Stations . | . . . . . . . Recycling Units . | . . . . . . . Scanalyzers . | . . . . . . . Garrison Access 1 | . . . . . . 1 Total Hacks 33 | . 14 . 2 1 14 2 Successful 15 | . 6 . 2 1 5 1 Failed 17 | . 7 . . . 9 1 Catastrophic 2 | . . . . . 1 1 Database Lockouts 1 | . 1 . . . . . Manual 17 | . 10 . 1 . 6 . Terminals 28 | . 14 . . . 14 . Fabricators . | . . . . . . . Repair Stations . | . . . . . . . Recycling Units . | . . . . . . . Scanalyzers . | . . . . . . . Garrison Access 2 | . . . . . . 2 Terminal Hacks 9 | . 4 . 2 1 2 . Record 1 | . . . 1 . . . Robot Analysis 2 | . 1 . . . 1 . Open Door 1 | . . . . 1 . . Disarm Traps 1 | . 1 . . . . . Hauler Manifests 1 | . . . . . 1 . Registered Components 1 | . 1 . . . . . Zone Layout 1 | . 1 . . . . . Proto ID Catalog 1 | . . . 1 . . . Fabricator Hacks . | . . . . . . . Repair Station Hacks . | . . . . . . . Recycling Unit Hacks . | . . . . . . . Scanalyzer . | . . . . . . . Garrison Access Hacks 1 | . . . . . . 1 Seal Access 1 | . . . . . . 1 Unauthorized Hacks 5 | . 2 . . . 3 . Terminals 5 | . 2 . . . 3 . Botnet 5 | . 2 . . . 3 . Fabricators . | . . . . . . . Repair Stations . | . . . . . . . Recycling Units . | . . . . . . . Scanalyzers . | . . . . . . . Garrison Access . | . . . . . . . Data Cores Recovered . | . . . . . . . Used . | . . . . . . . Hacking Detections 8 | . 3 . . . 5 . Full Trace Events 2 | . . . . . 2 . Feedback Events . | . . . . . . . Feedback Blocked . | . . . . . . . Robot Schematics Acquired . | . . . . . . . Robots Built . | . . . . . . . Authchips . | . . . . . . . Time . | . . . . . . . Total Robot Build Rating . | . . . . . . . Part Schematics Acquired . | . . . . . . . Parts Built . | . . . . . . . Authchips . | . . . . . . . Time . | . . . . . . . Total Part Build Rating . | . . . . . . . Part Studies Acquired . | . . . . . . . Parts Repaired . | . . . . . . . Time . | . . . . . . . Parts Recycled . | . . . . . . . Recycled Matter . | . . . . . . . Retrieved Matter . | . . . . . . . Retrieved Components . | . . . . . . . Parts Scanalyzed . | . . . . . . . Part Schematics Acquired . | . . . . . . . Parts Damaged . | . . . . . . . Bothacking | -11 -10 -10 -10 -9 -8 -7 ------------ Run | Yrd Mat Min Exi Min Mat Fac Used RIF Installer . | . . . . . . . Robots Hacked . | . . . . . . . Non-combat . | . . . . . . . Combat . | . . . . . . . Robot Hacks Applied . | . . . . . . . Relay Couplers Released . | . . . . . . . Fabnet Peak Effective % . | . . . . . . . Robots Rewired 3 | . . . 3 . . . Allies Hacked . | . . . . . . . Hacks Repelled . | . . . . . . . Allies | -11 -10 -10 -10 -9 -8 -7 -------- Run | Yrd Mat Min Exi Min Mat Fac Total Allies 3 | . . . 3 . . . Largest Group 3 | . . . 3 3 1 . Highest-Rated Group 50 | . . . 50 50 21 . Highest-Rated Ally 21 | . . . 21 21 21 . Total Orders . | . . . . . . . Ally Attacks 30 | . . . . 26 4 . Total Damage 621 | . . . . 512 109 . Kills 8 | . . . . 8 . . Allies Corrupted . | . . . . . . . Allies Melted . | . . . . . . . Intel | -11 -10 -10 -10 -9 -8 -7 ------- Run | Yrd Mat Min Exi Min Mat Fac Active Infowar (turns) 3283 | 29 559 802 448 631 551 263 Sensors 684 | . . . . . 421 263 Traps 92 | . . . . . 92 . Seismic 2599 | 29 559 802 448 631 130 . Jamming 229 | . . . . . 229 . ECM 36 | . . . . . . 36 Robot Analysis Total 2 | . 1 . . . 1 . Derelict Logs Recovered 2 | . . 1 . 1 . . Drone Launches . | . . . . . . . Drone Recoveries . | . . . . . . . Exploration | -11 -10 -10 -10 -9 -8 -7 ------------- Run | Yrd Mat Min Exi Min Mat Fac Turns Passed 3450 | 159 559 802 448 631 586 265 Spaces Moved 2126 | 85 371 454 253 316 325 322 Core 89 | 6 . . . . 83 . Treads 1289 | 23 1 454 253 316 242 . Legs 426 | 56 370 . . . . . Wheels . | . . . . . . . Hover . | . . . . . . . Flight 322 | . . . . . . 322 Fastest Speed 28 | 50 120 160 160 160 50 28 Average Speed 133 | 125 120 160 160 160 132 65 Slowest Speed 160 | 160 160 160 160 160 160 157 Overloaded Moves . | . . . . . . . Propulsion Burnouts . | . . . . . . . Robots Hopped 5 | . . . . . . 5 Potential Cave-ins . | . . . . . . . Cave-ins Triggered . | . . . . . . . Exploration Rate (%) 44 | 5 64 84 63 58 28 9 Regions Visited 6 Branch Regions 3 Pre-discovered Areas 1 | . . . 1 . . . Known Exits Taken 1 | . . . . . 1 . Unknown Exits Taken 5 | 1 1 1 1 1 . . Scrap Searched 4 | . . 2 . 2 . . Spaces Dug . | . . . . . . . Terrain Destroyed 76 | . . . . . 55 21 Melee . | . . . . . . . Projectile . | . . . . . . . AOE 76 | . . . . . 55 21 Terrain Rammed . | . . . . . . . Walls Destroyed . | . . . . . . . Machines Disabled . | . . . . . . . Actions | -11 -10 -10 -10 -9 -8 -7 --------- Run | Yrd Mat Min Exi Min Mat Fac Total 2568 | 115 428 500 297 431 430 367 Wait 205 | . 8 18 . 102 50 27 Move 2111 | 84 370 453 252 315 324 313 Hop 4 | . . . . . . 4 Pick Up 16 | 6 1 4 1 1 2 1 Fast Attach 28 | 6 3 2 . 1 8 8 Attach 10 | 2 2 . . . 3 3 Detach 8 | 2 . . . . 2 4 Swap 5 | . . 1 . 1 3 . Drop 21 | 2 4 3 1 3 5 3 Fire 108 | 13 35 19 . 7 32 2 Melee 3 | . . . . . 1 2 Ram . | . . . . . . . Kick 5 | . 5 . . . . . Crush 1 | . . . . 1 . . Escape Stasis . | . . . . . . . Rewire 43 | . . . 43 . . . Trap . | . . . . . . . Miscellaneous . | . . . . . . . Route ------- -11/Scrapyard -10/Materials (discovered 4 exits: [*Mat x2] / [*Min x2]) -10/Mines (discovered 3 exits: [*Mat] / *Exi / Sub) -10/Exiles (discovered 2 exits: *Min x2) -9/Mines -8/Materials (discovered 3 exits: *Fac x2 / *Sto) -7/Factory History --------- Turn | Location | Event 4 | -11/Scrapyard | Discovered new exit (range 15) 160 | -11/Scrapyard | Entered Materials 187 | -10/Materials | Central database locked down 304 | -10/Materials | Build established: Mutant 308 | -10/Materials | Discovered new exit (range 6) 375 | -10/Materials | Discovered new exit (range 16) 631 | -10/Materials | Discovered new exit (range 19) 631 | -10/Materials | Discovered new exit (range 17) 719 | -10/Materials | Entered Mines 945 | -10/Mines | Identified exit to Subcaves 1296 | -10/Mines | Discovered new exit (range 10) 1470 | -10/Mines | Build established: Scavenger-Mutant 1513 | -10/Mines | Deemed a non-threat by the Exiles lab entrance 1515 | -10/Mines | Discovered new exit (range 5) 1521 | -10/Mines | Entered Exiles 1521 | -10/Exiles | Found Exiles lab destroyed 1542 | -10/Exiles | Discovered new exit (range 15) 1716 | -10/Exiles | Learned location of Zion (-7) 1806 | -10/Exiles | Opened EX-Vault 1815 | -10/Exiles | Found Longsword +1 1955 | -10/Exiles | Discovered new exit (range 10) 1969 | -10/Exiles | Entered Mines 1969 | -9/Mines | Accompanied by 3 allies 2138 | -9/Mines | Met a Derelict shopkeep closing up shop 2458 | -9/Mines | Learned location of 1 exit from Materials 2476 | -9/Mines | Received a Rocket Launcher from a helpful Derelict 2592 | -9/Mines | Discovered new exit (range 7) 2600 | -9/Mines | Entered Materials 2600 | -8/Materials | Accompanied by 1 ally 2600 | -8/Materials | Evolved 4 slots: Propulsion x2, Utility x2 2601 | -8/Materials | Identified exit to Factory 2827 | -8/Materials | Discovered new exit (range 15) 2849 | -8/Materials | Identified exit to Storage 3108 | -8/Materials | Lost 3 parts (1u2w) 3180 | -8/Materials | Lost 4 parts (1p2n1w) 3184 | -8/Materials | Discovered exit to Factory (range 5) 3186 | -8/Materials | Entered Factory 3186 | -7/Factory | Evolved 2 slots: Utility x2 3344 | -7/Factory | Build established: Mutant 3451 | -7/Factory | Self-destructed Last Messages --------------- 03381_ Acquired Lgt. Nuclear Core. 03381_ K-01 Serf collects debris. 03383_ Acquired VTOL Module. 03385_ Acquired 18 matter. 03386_ K-01 Serf collects debris. 03389_ VTOL Module destroyed. 03390_ K-01 Serf collects debris. 03395_ Acquired 13 matter. 03395_ Dropped Lgt. Treads. 03396_ Dropped Adv. Treads. 03397_ Acquired Adv. Treads. 03398_ K-01 Serf collects debris. 03399_ K-01 Serf cleans the Nuclear Reactor. 03402_ K-01 Serf collects debris. 03403_ K-01 Serf cleans the Nuclear Reactor. 03415_ Acquired ECM Suite. 03448_ Sneak attack on R-06 Scavenger. 03448_ Destroyed Com. Wheel. 03448_ R-06 Scavenger destroyed. 03450_ Acquired 40 matter. Map ----- +----------------------------------------------------+ | ??? #??????????????????????? | | ??? #??????????????????????? | | ??????###########+### ^ ^#??????????????????????? | | ???????# # #??????????????????????? | | ???????# # #??????????????????????? | | ???????# # +??????????????????????? | | ???????# # #??????????????????????? | | ???????# # #??????????????????????? | | ???????# # #?????????????????????#? | | ???????# # ##############???????? ? | | ???????# # # #???????? ? | | ???????# # # #???????? ? | | ???????# # + """" #???????# # | | ???????# [ + # """" #???????# # | | ???????# #w # """"??????????# # | | ???????############## # """"??????????# # | | ????????????######### # """"??????????# # | | ????????????# # # """"???###????# # | | ????????????# "" # + ??? #????# # | | ????????????# "G + # ??# #????# # | | ????????????# "" # # ??# #????# # | | ????????????# # # ?# #????# # | | ????????????# + ###############+##???# # | | ????????????###########+######## !!= ! #???# # | | ?????????????????# k ## #???# # | | ?????????????????# @! ## #???# # | | ?????????????????# "" ""% ## ##### # | | ?????????????????# "" ""! ## ! + # | | ?????????????????# """ """ ## # # | | ?????????????????# """ """ ##########+### # | | ?????????????????#! """ """ ######## # | | ?????????????????# + ! # | | ?????????????????# ###### # | | ?????????????????# #????# """ """ # | | ?????????????????# #????# """ """ ""# | | ?????????????????# [ #????# """ """ Y"# | | ?????????????????##############????# ""# | | ???????????????????????????????????# ! [ # | | ???????????????????????????????????# # | | ???????????????????????????????????## ######## # | | ????????????????????????????????????# #???####+# | | ????????????????????????????????????# #???# | | ????????????????????????????????????# #???# | | ????????????????????????????######### ##??# | | ????????????????????????????# # #### | | ????????????????????????????#! """ # ## | | ????????????????????????????# """ ! + | | ????????????????????????????# """ ### | | ????????????????????????????# # #?# | | ????????????????????????????# ! # = ##?# | +----------------------------------------------------+ Best States ------------- Heat Dissipation 45 Energy Generation 14 Energy Capacity 265 Matter Stores 300 Matter Capacity 300 Sight Range 16 Robot Scan Range 15 Terrain Scan Density 110 ECM Strength 1 Jamming Range 12 Armor Coverage 150 Weapon Shielding 33 Evasion (%) 63 Targeting Accuracy 5 Recoil Reduction 4 Defensive Hacking 10 Item Schematics ----------------- None Robot Schematics ------------------ None Fabricated ------------ Nothing Repaired ---------- Nothing Studied --------- None Alien Tech Used ----------------- None Achievements -------------- None Challenges ------------ None Game ------ Seed AlphaGatlingPod Manual? 0 Play Time 00:21:24 Cumulative 47.1 hours Start 2026.01.02 @ 10:03:31 End 2026.01.02 @ 18:38:11 Sessions 3 Manual Loads 0 Difficulty Rogue Special Mode None Game No. 43 Rogue 43 Adventurer 0 Explorer 0 Win Type - Total 6 Types 6/0/0/0/0/0/0/0/0/0 Lore% 37 Gallery% 36 Achievement% 35 Wizard Run 0 Options --------- Layout 1 ASCII 0 Keyboard 1 Movement Numpad Keybinds 0 Fullscreen 2 Font 24/Terminus Map View 50x35 Zoom Use 0% Tactical HUD 1 Map Filters NONE Filters NONE Steam X RUN: f6eec5b1-7d96-4ceb-a87d-b5336f49ec65